bitfinex/quotes_BTCUSD_20230118
["timestamp","ask_amount","ask_price","bid_price","bid_amount"]
[1674085754257,0.002,20703.0,20701.0,0.01296804]
[1674085754519,0.47935866,20706.0,20701.0,0.00896804]
[1674085754781,0.47935866,20706.0,20701.0,0.01296804]
[1674085754782,0.53405094,20705.0,20701.0,0.01296804]
[1674085755030,0.53205094,20705.0,20701.0,0.10896804]
[1674085755275,0.009,20703.0,20701.0,0.11696804]
[1674085755521,0.009,20703.0,20701.0,0.00896804]
[1674085755791,0.009,20703.0,20701.0,0.01296804]
[1674085756053,0.44943696,20704.0,20701.0,0.00896804]
[1674085756271,0.10034879,20703.0,20701.0,0.01296804]
[1674085756502,0.40034879,20703.0,20701.0,0.01296804]
[1674085758233,0.23090001,20702.0,20701.0,0.01296804]
[1674085758785,0.53049282,20702.0,20701.0,0.01296804]
[1674085759033,0.53049282,20702.0,20701.0,0.00896804]
[1674085759266,0.53249282,20702.0,20701.0,0.01296804]
[1674085760242,0.73189792,20702.0,20701.0,0.01296804]
[1674085760487,0.23249282,20702.0,20701.0,0.01296804]
[1674085760750,0.23249282,20702.0,20701.0,0.39714794]
[1674085760995,0.23249282,20702.0,20701.0,0.72724494]
[1674085761498,0.23249282,20702.0,20701.0,0.80654494]
[1674085763266,0.23249282,20702.0,20701.0,1.28961294]
[1674085763515,0.23249282,20702.0,20701.0,1.38961294]
[1674085764506,0.23049282,20702.0,20701.0,1.38561294]
[1674085765236,0.23849282,20702.0,20701.0,1.39761294]
[1674085765481,0.23849282,20702.0,20701.0,0.81454494]
[1674085765724,0.23849282,20702.0,20701.0,0.73524494]
[1674085766499,0.23049282,20702.0,20701.0,0.72324494]
[1674085766759,0.23949282,20702.0,20701.0,0.73524494]
[1674085767713,0.23949282,20702.0,20701.0,1.21831294]
[1674085767978,0.23949282,20702.0,20701.0,1.29761294]
[1674085768237,0.23949282,20702.0,20701.0,1.39761294]
[1674085770368,0.23949282,20702.0,20701.0,0.35106504]
[1674085770910,0.23949282,20702.0,20701.0,0.02096804]
[1674085771201,0.2875931,20702.0,20701.0,0.02096804]
[1674085771462,0.23949282,20702.0,20701.0,0.02096804]
[1674085771722,0.23949282,20702.0,20701.0,0.34571004]
[1674085774612,0.23949282,20702.0,20701.0,0.02096804]
[1674085775405,0.23949282,20702.0,20701.0,0.34629304]
[1674085775925,0.2634421,20702.0,20701.0,0.34629304]
[1674085776438,0.2634421,20702.0,20701.0,0.02096804]
[1674085776937,0.5634421,20702.0,20701.0,0.02096804]
[1674085778327,0.2634421,20702.0,20701.0,0.02096804]
[1674085778830,0.5634421,20702.0,20701.0,0.02096804]
[1674085779871,0.23949282,20702.0,20701.0,0.02096804]
[1674085780120,0.23949282,20702.0,20701.0,1.38052004]
[1674085780410,0.23949282,20702.0,20701.0,1.48052004]
[1674085780719,0.23949282,20702.0,20701.0,2.08052004]
[1674085783809,0.23949282,20702.0,20701.0,2.15982004]
[1674085784074,0.23949282,20702.0,20701.0,2.53873545]
[1674085785648,0.00215697,20706.0,20702.0,0.68409622]
[1674085785936,0.00215697,20706.0,20705.0,0.0793]
[1674085786215,0.00215697,20706.0,20705.0,1.842273]
[1674085786473,0.00215697,20706.0,20705.0,1.762973]
[1674085787306,0.00215697,20706.0,20705.0,1.852973]
[1674085787841,0.00215697,20706.0,20705.0,1.842973]
[1674085788093,0.00215697,20706.0,20705.0,1.852973]
[1674085788359,0.00215697,20706.0,20705.0,1.942973]
[1674085790988,0.00215697,20706.0,20705.0,1.359998]
[1674085794391,0.00215697,20706.0,20705.0,1.459998]
[1674085796230,0.19647794,20706.0,20705.0,1.359998]
[1674085796494,0.43469094,20708.0,20705.0,0.394048]
[1674085796763,0.3,20707.0,20705.0,0.09]
[1674085797315,1.37978794,20707.0,20705.0,0.09]
[1674085797615,1.88053707,20707.0,20705.0,0.09]
[1674085798046,1.88053707,20707.0,20703.0,0.483001]
[1674085798047,1.85748179,20707.0,20702.0,0.92206187]
[1674085798049,1.85748179,20707.0,20705.0,0.09]
[1674085798284,0.29306591,20706.0,20702.0,0.92206187]
[1674085798505,1.08428282,20706.0,20705.0,0.09]
[1674085798729,1.18996185,20706.0,20702.0,0.92206187]
[1674085799032,0.55214265,20705.0,20702.0,0.92206187]
[1674085799584,0.43582097,20704.0,20701.0,0.00896804]
[1674085799845,0.3,20703.0,20701.0,0.00896804]
[1674085800114,0.97734897,20703.0,20701.0,0.00896804]
[1674085800377,0.18157799,20702.0,20701.0,0.00896804]
[1674085801160,0.483028,20703.0,20701.0,0.44058936]
[1674085801449,0.59690594,20705.0,20701.0,0.83365736]
[1674085801735,0.965965,20705.0,20701.0,0.83365736]
[1674085802001,0.10301304,20704.0,20701.0,0.92365736]
[1674085802266,0.10301304,20704.0,20701.0,0.83365736]
[1674085802526,0.10301304,20704.0,20701.0,1.35172536]
[1674085802809,0.10301304,20704.0,20701.0,0.86865736]
[1674085802810,0.51694398,20704.0,20701.0,0.86865736]
[1674085803088,0.51694398,20704.0,20701.0,0.38558936]
[1674085803089,0.05825306,20703.0,20701.0,0.38558936]
[1674085803356,0.25257403,20703.0,20701.0,0.00896804]
[1674085803626,1.35069171,20702.0,20701.0,0.04396804]
[1674085803889,0.96609,20702.0,20701.0,0.00896804]
[1674085804163,0.96609,20702.0,20701.0,0.04396804]
[1674085804466,0.96609,20702.0,20701.0,0.00896804]
[1674085804729,0.003,20702.0,20701.0,0.00996804]
[1674085804979,0.303,20702.0,20701.0,0.00996804]
[1674085805816,0.003,20702.0,20701.0,0.00996804]
[1674085806086,0.003,20702.0,20701.0,0.43073804]
[1674085806367,0.003,20702.0,20701.0,0.75083904]
[1674085806635,0.003,20702.0,20701.0,1.23390704]
[1674085806914,0.482994,20705.0,20701.0,1.71597504]
[1674085807227,0.482968,20706.0,20702.0,0.320082]
[1674085807497,0.59687594,20707.0,20702.0,0.966076]
[1674085807762,0.482945,20707.0,20703.0,0.75962541]
[1674085808048,1.33014563,20708.0,20704.0,0.320046]
[1674085808049,0.84722263,20708.0,20704.0,0.320046]
[1674085808308,0.28519663,20709.0,20703.0,1.02256241]
[1674085808579,0.30825191,20709.0,20704.0,1.286015]
[1674085808853,0.84737363,20710.0,20704.0,0.965973]
[1674085809116,0.11393094,20710.0,20705.0,0.398077]
[1674085809384,0.11393094,20710.0,20707.0,0.0793]
[1674085809645,0.00530693,20711.0,20708.0,0.319975]
[1674085809999,0.00530693,20711.0,20707.0,0.562214]
[1674085810258,0.00530693,20711.0,20708.0,0.802868]
[1674085810514,0.00530693,20711.0,20709.0,0.38836964]
[1674085810801,0.00530693,20711.0,20710.0,0.317405]
[1674085811858,0.00530693,20711.0,20710.0,0.417405]
[1674085812383,0.00530693,20711.0,20710.0,0.51031455]
[1674085812940,0.00530693,20711.0,20710.0,0.60231455]
[1674085813202,0.00530693,20711.0,20710.0,0.31731455]
[1674085813484,0.00530693,20711.0,20710.0,0.412848]
[1674085813970,0.00530693,20711.0,20710.0,0.093]
[1674085813976,0.00530693,20711.0,20709.0,0.38836964]
[1674085814229,0.00530693,20711.0,20710.0,0.033]
[1674085814490,0.00530693,20711.0,20710.0,0.34168]
[1674085814787,0.00530693,20711.0,20710.0,0.352848]
[1674085815354,0.00530693,20711.0,20710.0,0.452848]
[1674085815637,0.00530693,20711.0,20710.0,0.419848]
[1674085816426,0.00530693,20711.0,20710.0,0.512848]
[1674085817798,0.00530693,20711.0,20710.0,0.419848]
[1674085818368,0.00530693,20711.0,20710.0,0.902706]
[1674085818640,0.00530693,20711.0,20710.0,0.419848]
[1674085818923,0.00530693,20711.0,20709.0,0.38836964]
[1674085819217,0.00530693,20711.0,20710.0,0.093]
[1674085819735,0.00530693,20711.0,20709.0,0.38836964]
[1674085820037,0.00530693,20711.0,20709.0,0.48036964]
[1674085820358,0.00530693,20711.0,20709.0,0.38836964]
[1674085820560,0.00530693,20711.0,20710.0,0.512848]
[1674085820817,0.00530693,20711.0,20710.0,0.419848]
[1674085821886,0.00530693,20711.0,20710.0,0.902706]
[1674085823199,0.00530693,20711.0,20710.0,0.995706]
[1674085823728,0.00530693,20711.0,20710.0,0.895706]
[1674085824266,0.00530693,20711.0,20710.0,0.412848]
[1674085824528,0.00530693,20711.0,20710.0,0.093]
[1674085824787,0.00530693,20711.0,20709.0,0.38836964]
[1674085825045,0.00530693,20711.0,20710.0,0.033]
[1674085826077,1.63624625,20711.0,20709.0,0.093]
[1674085826353,0.392243,20710.0,20709.0,0.093]
[1674085826624,1.28903694,20710.0,20709.0,0.093]
[1674085826950,3.3860963,20710.0,20709.0,0.093]
[1674085827189,0.01088439,20708.0,20702.0,0.1]
[1674085827456,0.24153,20703.0,20702.0,0.1]
[1674085827726,0.76352997,20703.0,20702.0,0.1]
[1674085827998,2.43183566,20703.0,20701.0,0.00896804]
[1674085828264,1.19177069,20702.0,20701.0,0.00896804]
[1674085828522,1.31190548,20702.0,20701.0,0.00896804]
[1674085828803,1.31190548,20702.0,20700.0,0.01526862]
[1674085828804,1.78983666,20702.0,20700.0,0.01526862]
[1674085829085,2.31081635,20701.0,20700.0,0.01526862]
[1674085829372,4.35668356,20701.0,20700.0,0.01526862]
[1674085829857,2.31325968,20701.0,20700.0,6.862e-05]
[1674085829859,2.22045369,20701.0,20700.0,6.862e-05]
[1674085830125,2.62733385,20701.0,20700.0,6.862e-05]
[1674085830384,2.76047984,20701.0,20700.0,6.862e-05]
[1674085830670,4.65404318,20701.0,20700.0,6.862e-05]
[1674085830943,5.08936294,20701.0,20700.0,6.862e-05]
[1674085831183,5.46609165,20701.0,20700.0,6.862e-05]
[1674085831457,4.00978178,20701.0,20700.0,6.862e-05]
[1674085831739,6e-05,20699.0,20686.0,0.0192817]
[1674085832022,0.02583605,20692.0,20687.0,0.40577558]
[1674085832295,0.02583605,20692.0,20684.0,0.00029539]
[1674085832296,0.24176,20688.0,20684.0,0.00029539]
[1674085832562,0.31504,20687.0,20685.0,0.35187661]
[1674085832839,0.31504,20687.0,20685.0,0.34208269]
[1674085832840,0.311213,20686.0,20685.0,0.34208269]
[1674085833097,0.22428819,20688.0,20685.0,0.39013374]
[1674085833098,0.22447819,20688.0,20685.0,0.39013374]
[1674085833379,0.7508757,20688.0,20684.0,0.00029539]
[1674085833873,0.1586,20685.0,20684.0,0.00029539]
[1674085834142,0.473219,20685.0,20684.0,0.00029539]
[1674085834411,0.393919,20685.0,20684.0,0.00029539]
[1674085834719,1.03833187,20685.0,20684.0,0.00029539]
[1674085834995,1.75729356,20685.0,20684.0,0.00029539]
[1674085835269,1.81257259,20685.0,20677.0,0.0005]
[1674085835541,1.81257259,20685.0,20680.0,0.1]
[1674085835542,0.3013,20682.0,20680.0,0.1]
[1674085835809,0.3013,20682.0,20677.0,0.0005]
[1674085835810,1.71876266,20681.0,20677.0,0.0005]
[1674085836127,0.99689566,20680.0,20677.0,0.0005]
[1674085836659,0.89345069,20679.0,20678.0,0.35553091]
[1674085836664,0.24182,20681.0,20680.0,0.35917198]
[1674085836937,0.5519919,20685.0,20682.0,0.41953181]
[1674085836938,0.0793,20685.0,20682.0,0.41953181]
[1674085837200,0.0793,20685.0,20680.0,0.337535]
[1674085837201,0.009,20685.0,20683.0,0.335938]
[1674085837471,0.1,20687.0,20683.0,0.9918083]
[1674085837757,0.1,20686.0,20684.0,0.322542]
[1674085838027,0.29432097,20686.0,20685.0,0.076877]
[1674085838303,0.1793,20686.0,20683.0,0.34633635]
[1674085838568,0.00029,20684.0,20683.0,0.34633635]
[1674085838861,0.10029,20684.0,20683.0,0.418583]
[1674085839148,0.29432097,20684.0,20683.0,0.79296749]
[1674085839413,0.1,20684.0,20683.0,0.79296749]
[1674085839683,0.1,20684.0,20683.0,0.48647975]
[1674085839952,0.107,20686.0,20683.0,0.56577975]
[1674085840220,0.21748262,20692.0,20685.0,0.6793]
[1674085840221,0.02583605,20692.0,20685.0,0.6793]
[1674085840525,0.02583605,20692.0,20689.0,0.6]
[1674085840785,0.02583605,20692.0,20691.0,0.0793]
[1674085841069,0.02583605,20692.0,20691.0,0.406948]
[1674085841340,0.02583605,20692.0,20691.0,0.327648]
[1674085842108,0.02583605,20692.0,20691.0,0.420648]
[1674085842659,0.02583605,20692.0,20691.0,0.327648]
[1674085842935,0.02583605,20692.0,20691.0,0.404648]
[1674085843237,0.02583605,20692.0,20691.0,0.327648]
[1674085843492,0.02583605,20692.0,20691.0,0.404648]
[1674085843758,0.02583605,20692.0,20691.0,0.327648]
[1674085844017,0.02583605,20692.0,20691.0,0.333648]
[1674085844304,0.02583605,20692.0,20691.0,0.327648]
[1674085844571,0.02583605,20692.0,20691.0,0.333648]
[1674085844838,0.02583605,20692.0,20691.0,0.40976838]
[1674085845110,0.59041107,20706.0,20692.0,0.08433242]
[1674085845402,0.01088439,20708.0,20698.0,0.5069]
[1674085845675,0.01088439,20708.0,20699.0,0.3275]
[1674085845676,0.43057496,20705.0,20699.0,0.3275]
[1674085845966,0.43057496,20705.0,20700.0,0.071579]
[1674085846234,0.43057496,20705.0,20701.0,0.32747]
[1674085846512,0.01088439,20708.0,20704.0,0.0792]
[1674085846784,0.01088439,20708.0,20705.0,0.323404]
[1674085847061,0.01088439,20708.0,20707.0,0.0792]
[1674085847545,0.01088439,20708.0,20707.0,0.402571]
[1674085847809,0.00547162,20710.0,20707.0,0.481371]
[1674085848075,0.00547162,20710.0,20706.0,1.3028535]
[1674085848076,0.19979259,20710.0,20709.0,0.1586]
[1674085848340,0.00547162,20710.0,20709.0,0.402637]
[1674085848914,0.00530693,20711.0,20709.0,0.481837]
[1674085849183,0.00530693,20711.0,20710.0,0.29600451]
[1674085850498,0.00457027,20712.0,20710.0,1.90932969]
[1674085850755,7.027e-05,20712.0,20711.0,0.985506]
[1674085851027,0.00530674,20714.0,20711.0,0.985506]
[1674085851290,0.00530674,20714.0,20713.0,0.0793]
[1674085851558,0.00530674,20714.0,20713.0,0.4736526]
[1674085852627,0.00530674,20714.0,20713.0,0.5656526]
[1674085853429,0.00530674,20714.0,20713.0,0.4736526]
[1674085853707,0.00530674,20714.0,20713.0,0.82784769]
[1674085854188,0.00530674,20714.0,20713.0,0.75346609]
[1674085854474,0.00530674,20714.0,20713.0,0.84546609]
[1674085854730,0.11065674,20714.0,20713.0,0.76616609]
[1674085854999,0.11065674,20714.0,20713.0,0.411971]
[1674085855255,0.00530674,20714.0,20713.0,0.5324681]
[1674085855797,0.00530674,20714.0,20713.0,0.4404681]
[1674085856066,0.00630674,20714.0,20713.0,0.4461681]
[1674085856323,0.00530674,20714.0,20713.0,0.3611681]
[1674085857115,0.11065674,20714.0,20713.0,0.319971]
[1674085857676,0.11165674,20714.0,20713.0,0.085]
[1674085858178,0.00630674,20714.0,20713.0,0.403404]
[1674085858439,0.00630674,20714.0,20713.0,0.89066544]
[1674085858440,0.00530674,20714.0,20713.0,0.89066544]
[1674085858697,0.00630674,20714.0,20713.0,0.97266544]
[1674085859743,0.00630674,20714.0,20713.0,0.95961679]
[1674085860004,0.00630674,20714.0,20713.0,1.36277029]
[1674085860264,0.00130674,20714.0,20713.0,1.75744994]
[1674085860744,0.00030674,20714.0,20713.0,1.28077029]
[1674085860746,0.00030674,20714.0,20713.0,1.78767029]
[1674085861012,0.00130674,20714.0,20713.0,1.77181679]
[1674085861276,0.00609186,20716.0,20714.0,0.75010316]
[1674085861552,0.1,20717.0,20715.0,3.49140519]
[1674085861828,0.00457027,20718.0,20716.0,1.94120919]
[1674085862059,0.00457027,20718.0,20717.0,0.6077605]
[1674085862320,0.00457027,20718.0,20717.0,0.206907]
[1674085863176,0.00457027,20718.0,20717.0,0.364507]
[1674085863715,0.00457027,20718.0,20717.0,0.456507]
[1674085863971,0.00457027,20718.0,20717.0,0.250957]
[1674085863972,0.30424124,20718.0,20717.0,0.250957]
[1674085864277,0.00457027,20718.0,20717.0,0.080357]
[1674085864556,0.00457027,20718.0,20717.0,0.172357]
[1674085864813,0.00457027,20718.0,20717.0,0.080357]
[1674085865066,0.00457027,20718.0,20717.0,0.179357]
[1674085865593,0.00457027,20718.0,20717.0,0.279357]
[1674085866098,0.30424124,20718.0,20717.0,0.279357]
[1674085866101,0.54558124,20718.0,20717.0,0.1]
[1674085866357,0.97986727,20718.0,20717.0,0.1]
[1674085866610,0.43852727,20718.0,20717.0,0.193]
[1674085866877,0.10992027,20718.0,20717.0,0.093]
[1674085867401,0.81883363,20718.0,20717.0,0.093]
[1674085867656,2.53650732,20718.0,20717.0,0.093]
[1674085867928,3.21350029,20718.0,20714.0,0.10319229]
[1674085868212,0.92051,20715.0,20714.0,0.10319229]
[1674085868666,0.92051,20715.0,20714.0,0.00319229]
[1674085868667,2.69146207,20715.0,20714.0,0.00319229]
[1674085869126,3.36298473,20715.0,20714.0,0.00619229]
[1674085869360,3.44178473,20715.0,20711.0,0.1]
[1674085869632,0.0793,20712.0,20710.0,0.1005]
[1674085869907,0.633876,20711.0,20710.0,0.1005]
[1674085870176,1.9629336,20711.0,20707.0,0.01349881]
[1674085870436,0.82556597,20710.0,20707.0,0.01349881]
[1674085870715,1.295025,20709.0,20707.0,0.01349881]
[1674085870963,0.631827,20708.0,20707.0,0.01349881]
[1674085871239,0.77616573,20708.0,20707.0,0.01349881]
[1674085872081,1.25336742,20708.0,20707.0,0.01349881]
[1674085872352,1.54868839,20708.0,20707.0,0.01349881]
[1674085872859,1.49436742,20708.0,20707.0,0.01349881]
[1674085873122,1.49436742,20708.0,20707.0,9.881e-05]
[1674085873123,1.39336742,20708.0,20707.0,9.881e-05]
[1674085873399,1.72068839,20708.0,20701.0,0.1]
[1674085873667,0.24155,20702.0,20701.0,0.1]
[1674085874024,1.54963297,20702.0,20701.0,0.1]
[1674085874203,1.055312,20702.0,20698.0,0.0145699]
[1674085874473,0.19432097,20701.0,20698.0,0.0145699]
[1674085874738,0.19432097,20701.0,20699.0,0.1]
[1674085875005,0.9378602,20702.0,20699.0,0.1]
[1674085875271,0.9278602,20702.0,20699.0,0.1]
[1674085875535,0.009,20701.0,20699.0,0.1]
[1674085875804,0.24155,20702.0,20699.0,0.1]
[1674085876076,1.041379,20704.0,20699.0,0.1]
[1674085876077,0.01,20701.0,20699.0,0.02145699]
[1674085876348,0.15164,20704.0,20700.0,0.332065]
[1674085876627,0.01,20702.0,20699.0,0.08846599]
[1674085876902,0.01,20702.0,20700.0,0.33603959]
[1674085877176,0.01,20702.0,20701.0,0.073329]
[1674085877454,0.2511,20707.0,20701.0,0.1397]
[1674085877742,0.003,20704.0,20702.0,0.13793746]
[1674085878025,0.1,20707.0,20705.0,0.003]
[1674085878296,0.1,20707.0,20706.0,0.214215]
[1674085878556,0.1,20707.0,20706.0,0.074615]
[1674085878843,0.1,20707.0,20706.0,0.1446341]
[1674085879119,0.1,20707.0,20706.0,0.074615]
[1674085880996,0.1,20707.0,20706.0,0.179615]
[1674085881269,0.60359747,20710.0,20706.0,0.179615]
[1674085881540,0.42905187,20708.0,20705.0,0.003]
[1674085881805,0.62337284,20708.0,20706.0,0.106]
[1674085882092,0.09402716,20707.0,20705.0,0.003]
[1674085882345,0.575247,20706.0,20705.0,0.003]
[1674085882888,1.74707166,20706.0,20705.0,0.003]
[1674085884199,1.74707166,20706.0,20705.0,0.111]
[1674085884458,2.56496993,20706.0,20705.0,0.111]
[1674085884816,2.56496993,20706.0,20705.0,0.011]
[1674085884817,1.92427335,20706.0,20705.0,0.011]
[1674085885333,1.53539969,20706.0,20705.0,0.011]
[1674085886121,1.93539969,20706.0,20705.0,0.011]
[1674085886398,2.65147516,20706.0,20705.0,0.011]
[1674085886688,2.65147516,20706.0,20705.0,0.003]
[1674085886689,1.35665917,20706.0,20705.0,0.003]
[1674085886955,1.35665917,20706.0,20705.0,0.012]
[1674085887229,1.39390969,20706.0,20705.0,0.012]
[1674085887576,2.30925233,20706.0,20705.0,0.012]
[1674085887824,1.57192497,20706.0,20705.0,0.012]
[1674085888332,1.23816797,20706.0,20705.0,0.012]
[1674085889126,0.75521697,20706.0,20705.0,0.012]
[1674085890168,0.3134,20706.0,20705.0,0.012]
[1674085890457,0.3134,20706.0,20705.0,0.337666]
[1674085890691,0.3134,20706.0,20705.0,0.41220962]
[1674085891231,0.3134,20706.0,20705.0,0.7550521]
[1674085891490,0.00636073,20715.0,20705.0,0.85090962]
[1674085891753,0.2006817,20715.0,20708.0,0.482905]
[1674085892013,0.45242544,20713.0,20709.0,0.325591]
[1674085892274,0.54187515,20713.0,20706.0,0.78762875]
[1674085892572,0.19432097,20712.0,20706.0,0.22156541]
[1674085892818,0.19432097,20712.0,20707.0,0.317209]
[1674085893076,0.46906966,20714.0,20708.0,0.52847224]
[1674085893335,0.46906966,20714.0,20709.0,0.37002322]
[1674085893618,0.66339063,20714.0,20710.0,0.081685]
[1674085893921,0.66339063,20714.0,20706.0,0.44184733]
[1674085893922,0.33000681,20712.0,20706.0,0.44184733]
[1674085894136,0.19432097,20711.0,20706.0,0.33684733]
[1674085894414,0.19432097,20710.0,20708.0,0.042]
[1674085894649,0.25959346,20711.0,20706.0,0.33684733]
[1674085894909,0.19432097,20710.0,20706.0,0.33684733]
[1674085895252,0.24144,20709.0,20705.0,0.003]
[1674085895437,0.24143,20710.0,20706.0,0.41296721]
[1674085895696,0.47387681,20712.0,20708.0,0.36097075]
[1674085895972,0.47387681,20712.0,20709.0,0.14172448]
[1674085895973,0.33000681,20712.0,20709.0,0.14172448]
[1674085896238,0.33000681,20712.0,20708.0,0.36097075]
[1674085896522,0.33000681,20712.0,20709.0,0.338678]
[1674085896760,0.33000681,20712.0,20708.0,0.36097075]
[1674085897032,0.33000681,20712.0,20709.0,0.03609707]
[1674085897278,0.33000681,20712.0,20709.0,0.04409707]
[1674085897530,0.33000681,20712.0,20709.0,0.008]
[1674085897787,0.33000681,20712.0,20708.0,0.36097075]
[1674085898297,0.19432097,20712.0,20708.0,0.36097075]
[1674085898804,0.48893929,20713.0,20708.0,0.36097075]
[1674085899075,0.68326026,20713.0,20708.0,0.4468617]
[1674085899340,0.44506929,20713.0,20708.0,0.4468617]
[1674085899602,0.1,20713.0,20709.0,0.323883]
[1674085899859,0.1,20713.0,20710.0,0.07498]
[1674085900131,0.1,20713.0,20711.0,0.319587]
[1674085903287,0.19432097,20706.0,20705.0,0.01]
[1674085903549,0.19432097,20706.0,20705.0,0.003]
[1674085903550,0.6723391,20706.0,20705.0,0.003]
[1674085903796,0.79840834,20706.0,20705.0,0.01]
[1674085904046,0.79840834,20706.0,20705.0,0.003]
[1674085904047,1.09840834,20706.0,20705.0,0.003]
[1674085904299,0.75482924,20706.0,20705.0,0.003]
[1674085904561,0.42606924,20706.0,20705.0,0.003]
[1674085904824,0.008,20706.0,20703.0,0.47831609]
[1674085905088,0.008,20706.0,20705.0,0.007]
[1674085905089,0.11169,20706.0,20705.0,0.007]
[1674085905638,0.10369,20706.0,20703.0,0.47831609]
[1674085905859,0.10369,20706.0,20704.0,0.42507]
[1674085905860,0.09569,20706.0,20704.0,0.42507]
[1674085906136,0.10369,20706.0,20705.0,0.073906]
[1674085906635,0.10369,20706.0,20705.0,0.007]
[1674085906636,0.11169,20706.0,20705.0,0.007]
[1674085906930,0.09569,20706.0,20703.0,0.37831609]
[1674085907160,0.09569,20706.0,20704.0,0.007]
[1674085907161,0.10369,20706.0,20704.0,0.007]
[1674085907680,0.008,20706.0,20705.0,0.44342193]
[1674085907946,0.98887371,20710.0,20705.0,0.77369593]
[1674085907947,0.15541,20709.0,20705.0,0.77369593]
[1674085908250,0.008,20706.0,20705.0,0.45042193]
[1674085908503,0.10369,20706.0,20705.0,0.76627393]
[1674085908768,0.11169,20706.0,20705.0,0.76627393]
[1674085909034,0.19569,20706.0,20705.0,0.83660132]
[1674085909558,0.1,20706.0,20705.0,0.83660132]
[1674085911095,0.15732,20711.0,20705.0,0.83660132]
[1674085911098,0.50360332,20711.0,20705.0,0.83660132]
[1674085911356,0.008,20706.0,20705.0,0.07732739]
[1674085911638,0.008,20706.0,20705.0,0.88556939]
[1674085911908,0.1,20712.0,20705.0,0.88556939]
[1674085911909,0.15973,20711.0,20705.0,1.27650811]
[1674085912199,0.008,20711.0,20706.0,0.66845933]
[1674085912441,0.008,20711.0,20707.0,0.71618472]
[1674085912709,0.16149,20714.0,20708.0,0.080661]
[1674085912971,0.16149,20714.0,20709.0,0.318214]
[1674085913222,0.16149,20714.0,20710.0,0.080648]
[1674085913527,0.16149,20714.0,20711.0,0.3146188]
[1674085913785,0.16149,20714.0,20712.0,0.092265]
[1674085914063,0.00636073,20715.0,20708.0,0.39793872]
[1674085914332,0.20132097,20714.0,20709.0,0.06760623]
[1674085914587,0.19432097,20714.0,20710.0,0.32904]
[1674085914854,0.007,20714.0,20712.0,0.007]
[1674085915124,0.007,20714.0,20709.0,0.06760623]
[1674085915395,0.014,20714.0,20710.0,0.328718]
[1674085915666,0.014,20714.0,20711.0,0.070123]
[1674085915667,0.19432097,20714.0,20711.0,0.070123]
[1674085915927,0.20132097,20714.0,20712.0,0.007]
[1674085916229,0.24774073,20715.0,20707.0,0.51375232]
[1674085916499,0.24774073,20715.0,20708.0,0.26470274]
[1674085916500,0.19432097,20713.0,20708.0,0.26470274]
[1674085916766,0.19432097,20712.0,20709.0,0.317837]
[1674085917034,0.19432097,20713.0,20710.0,0.081026]
[1674085917308,0.007,20714.0,20711.0,0.30571]
[1674085917580,0.10269,20713.0,20712.0,0.09311]
[1674085917842,0.10269,20713.0,20709.0,0.06983533]
[1674085917843,0.09569,20713.0,20709.0,0.06983533]
[1674085918127,0.09569,20713.0,20710.0,0.330543]
[1674085918128,0.10269,20713.0,20710.0,0.330543]
[1674085918398,0.00636073,20715.0,20711.0,0.075299]
[1674085918656,0.00636073,20715.0,20712.0,1.428128]
[1674085918657,0.007,20714.0,20712.0,1.428128]
[1674085918969,0.00636073,20715.0,20712.0,1.428128]
[1674085918970,0.00636073,20715.0,20714.0,0.14]
[1674085919232,0.00636073,20715.0,20714.0,0.463478]
[1674085919776,0.00636073,20715.0,20714.0,0.323478]
[1674085920044,0.00636073,20715.0,20714.0,0.48818074]
[1674085920638,0.00457027,20718.0,20714.0,0.48818074]
[1674085920911,0.00457027,20718.0,20715.0,0.558018]
[1674085921162,0.00457027,20718.0,20716.0,0.310878]
[1674085921473,0.00457027,20718.0,20717.0,0.087832]
[1674085922857,0.24766552,20722.0,20717.0,0.087832]
[1674085922858,0.00085127,20722.0,20717.0,0.087832]
[1674085923122,0.00085127,20722.0,20718.0,0.310846]
[1674085923410,0.1,20721.0,20719.0,0.087817]
[1674085923667,0.1,20721.0,20720.0,0.3195957]
[1674085924189,0.00085127,20722.0,20720.0,0.3195957]
[1674085924445,0.00085127,20722.0,20721.0,0.087808]
[1674085924737,0.00085127,20722.0,20715.0,0.9524056]
[1674085924738,0.53216224,20722.0,20719.0,0.062]
[1674085924967,0.53216224,20722.0,20715.0,0.0634746]
[1674085924968,0.32406,20721.0,20715.0,0.0634746]
[1674085925223,0.19432097,20720.0,20715.0,0.0634746]
[1674085925514,0.006,20721.0,20714.0,0.16470274]
[1674085925760,0.006,20721.0,20715.0,0.73450972]
[1674085926042,0.006,20721.0,20718.0,0.24]
[1674085926296,0.00085127,20722.0,20719.0,0.303524]
[1674085926557,0.00685127,20722.0,20721.0,0.007]
[1674085927047,0.00685127,20722.0,20721.0,0.45618777]
[1674085927052,0.00085127,20722.0,20721.0,0.44918777]
[1674085927328,0.00085127,20722.0,20721.0,0.88878777]
[1674085927561,0.00774333,20723.0,20721.0,1.79362649]
[1674085927816,0.00774333,20723.0,20722.0,1.47136296]
[1674085928102,0.00774333,20723.0,20722.0,1.86930168]
[1674085928638,0.00774333,20723.0,20722.0,1.56930168]
[1674085928889,0.00774333,20723.0,20722.0,1.17136296]
[1674085929443,0.00774333,20723.0,20722.0,0.68878496]
[1674085929698,0.2020643,20723.0,20722.0,0.095107]
[1674085929980,0.00774333,20723.0,20722.0,0.095107]
[1674085930243,0.00774333,20723.0,20722.0,0.187107]
[1674085930244,0.2977543,20723.0,20722.0,0.187107]
[1674085930510,0.2977543,20723.0,20722.0,0.092]
[1674085930768,0.38494901,20737.0,20723.0,0.16717]
[1674085931039,0.2893,20742.0,20728.0,1.5648]
[1674085931040,0.17108719,20739.0,20728.0,1.5648]
[1674085931315,0.68043196,20740.0,20732.0,0.5069]
[1674085931316,0.16717,20740.0,20732.0,0.5069]
[1674085931568,0.16717,20740.0,20733.0,0.803251]
[1674085931839,0.16717,20740.0,20734.0,0.077384]
[1674085931840,0.1293,20739.0,20734.0,0.077384]
[1674085932143,0.1293,20739.0,20730.0,0.482374]
[1674085932144,0.009865,20732.0,20730.0,0.482374]
[1674085932704,0.009865,20732.0,20731.0,1.23673369]
[1674085932976,0.95666076,20747.0,20734.0,0.02919214]
[1674085933244,0.00337411,20746.0,20738.0,0.5069]